bitfinex/quotes_ETHUSD_20210701
["timestamp","ask_amount","ask_price","bid_price","bid_amount"]
[1625164027568,0.52096308,2120.8,2120.0,7.89600327]
[1625164027665,0.52096308,2120.8,2120.1,0.2]
[1625164027868,0.52096308,2120.8,2120.2,0.15]
[1625164027869,0.00602638,2120.8,2120.2,0.15]
[1625164028068,0.00602638,2120.8,2120.5,7.06918]
[1625164028166,0.00602638,2120.8,2120.5,11.50808]
[1625164028264,0.00602638,2120.8,2120.5,16.51808]
[1625164029951,0.00602638,2120.8,2120.5,9.4489]
[1625164030348,0.00602638,2120.8,2120.6,0.14]
[1625164031254,0.01227285,2120.8,2120.6,0.14]
[1625164031452,0.01227285,2120.8,2120.7,18.07]
[1625164031557,0.01227285,2120.8,2120.7,5.13]
[1625164031713,0.01227285,2120.8,2120.7,12.2]
[1625164031812,0.01227285,2120.8,2120.2,65.49873026]
[1625164031964,0.01227285,2120.8,2120.2,60.48873026]
[1625164032307,0.01227285,2120.8,2120.2,9.42886]
[1625164034246,0.01227285,2120.8,2120.0,10.3758]
[1625164034348,3.54097285,2120.8,2119.9,19.76314]
[1625164034645,3.54097285,2120.8,2119.9,9.42944]
[1625164034846,3.54097285,2120.8,2119.8,0.00602951]
[1625164034946,0.08,2120.7,2119.8,0.00602951]
[1625164035247,8.70841728,2120.8,2119.8,0.00602951]
[1625164036434,15.78290728,2120.8,2119.8,0.00602951]
[1625164036531,30.78290728,2120.8,2119.8,0.00602951]
[1625164036641,23.70841728,2120.8,2119.8,0.00602951]
[1625164036734,0.06,2120.7,2119.8,0.00602951]
[1625164036931,0.06905593,2120.7,2119.8,0.00602951]
[1625164037286,0.06,2120.7,2119.8,0.00602951]
[1625164037380,35.24587341,2120.8,2119.8,0.00602951]
[1625164037583,20.0,2120.5,2119.8,0.00602951]
[1625164037682,30.0,2120.5,2119.8,0.00602951]
[1625164037782,35.01,2120.5,2119.8,0.00602951]
[1625164038082,0.04,2120.4,2119.8,0.00602951]
[1625164038434,37.6153,2120.5,2119.8,0.00602951]
[1625164039977,17.6153,2120.5,2119.8,0.00602951]
[1625164040930,17.5653,2120.5,2119.8,0.00602951]
[1625164041029,16.496,2120.5,2119.8,0.00602951]
[1625164041132,5.01,2120.5,2119.8,0.00602951]
[1625164041236,3.54975285,2120.8,2119.8,0.00602951]
[1625164042789,3.54975285,2120.8,2119.8,7.08039951]
[1625164043538,3.54975285,2120.8,2119.8,12.09039951]
[1625164043639,0.01227285,2120.8,2119.8,7.08039951]
[1625164043739,0.01227285,2120.8,2119.9,0.1]
[1625164043840,0.01227285,2120.8,2120.3,7.07234]
[1625164044090,0.01227285,2120.8,2120.3,16.12094]
[1625164044188,0.01227285,2120.8,2120.3,11.11094]
[1625164044286,0.01227285,2120.8,2120.3,16.12094]
[1625164044637,0.01227285,2120.8,2120.4,0.06]
[1625164045343,0.01227285,2120.8,2120.3,17.10594]
[1625164046439,0.01227285,2120.8,2120.5,7.07152]
[1625164046989,0.01227285,2120.8,2120.3,12.08234]
[1625164048744,0.01227285,2120.8,2120.0,9.42978]
[1625164049050,0.01227285,2120.8,2119.9,10.6223]
[1625164049147,0.01227285,2120.8,2119.8,0.00602951]
[1625164049406,20.0,2120.7,2119.8,0.00602951]
[1625164049498,3.53724,2120.5,2119.8,0.00602951]
[1625164050418,10.61163,2120.5,2119.8,0.00602951]
[1625164050719,0.01227285,2120.8,2119.8,0.00602951]
[1625164050971,0.94475554,2120.8,2119.8,0.94413244]
[1625164051466,0.01227285,2120.8,2119.8,8.01801244]
[1625164051567,0.01227285,2120.8,2119.8,12.08990951]
[1625164051771,0.01227285,2120.8,2119.9,0.16]
[1625164051870,0.01227285,2120.8,2119.9,3.8522]
[1625164052024,0.27722159,2121.7,2120.2,3.5349031]
[1625164052147,0.27722159,2121.7,2120.3,15.0]
[1625164052249,0.27722159,2121.7,2120.3,15.15]
[1625164052352,0.27722159,2121.7,2120.3,28.16]
[1625164052500,0.00602003,2122.2,2120.9,0.01227285]
[1625164052595,0.00602003,2122.2,2120.8,0.9769]
[1625164052698,0.00602003,2122.2,2121.6,7.06681]
[1625164052797,0.00602003,2122.2,2121.6,12.07061]
[1625164052894,0.00602003,2122.2,2121.6,17.08061]
[1625164053198,24.06012147,2123.0,2121.6,17.08061]
[1625164053199,27.59377147,2123.0,2121.6,17.08061]
[1625164053348,4.06012147,2123.0,2121.7,28.72]
[1625164053447,0.27673275,2123.0,2121.7,28.72]
[1625164053546,0.27673275,2123.0,2121.7,41.73]
[1625164053649,7.15272534,2123.2,2121.7,13.13]
[1625164053749,7.15272534,2123.2,2121.7,13.01]
[1625164053848,7.15272534,2123.2,2121.8,0.16]
[1625164053947,6.87601574,2123.2,2121.8,0.16]
[1625164054246,0.00601574,2123.2,2121.8,0.16]
[1625164054385,0.00601574,2123.2,2121.9,0.08]
[1625164055086,0.00601574,2123.2,2122.4,7.06448]
[1625164055337,0.00601574,2123.2,2122.4,12.07448]
[1625164055435,0.00601574,2123.2,2122.4,5.01]
[1625164055540,0.00601574,2123.2,2122.2,14.42879]
[1625164055691,0.00601574,2123.2,2122.2,5.01]
[1625164055789,3.53890574,2123.2,2121.6,9.42013]
[1625164055888,7.85880574,2123.2,2121.6,9.42013]
[1625164056241,4.0,2123.1,2121.6,9.42013]
[1625164056339,3.53369,2122.8,2121.6,9.42013]
[1625164057489,7.06755,2122.7,2121.6,9.42013]
[1625164057787,7.06755,2122.7,2121.6,14.43013]
[1625164058440,3.53369,2122.8,2121.6,14.43013]
[1625164062187,3.53369,2122.8,2121.6,9.42013]
[1625164062287,20.0,2122.6,2121.1,32.72628]
[1625164062389,57.76956087,2122.6,2121.1,22.38638]
[1625164062486,0.29019582,2122.5,2121.1,22.38638]
[1625164062688,0.29019582,2122.5,2120.9,20.6072]
[1625164062887,3.53452,2122.4,2120.9,20.6072]
[1625164062987,0.43348221,2122.3,2120.9,20.6072]
[1625164063086,0.31832473,2122.0,2120.5,20.0945]
[1625164063238,0.33693873,2122.0,2120.5,20.0945]
[1625164063393,0.33693873,2122.0,2120.4,16.4580575]
[1625164063589,0.33693873,2122.0,2120.8,7.07031]
[1625164063691,3.87209873,2122.0,2120.8,7.07031]
[1625164063792,23.87209873,2122.0,2120.8,7.07031]
[1625164063890,8.88209873,2122.0,2120.8,7.07031]
[1625164065332,5.34693873,2122.0,2120.8,7.07031]
[1625164065432,5.32832473,2122.0,2120.8,7.07031]
[1625164065696,5.32832473,2122.0,2120.8,12.08031]
[1625164065799,6.73142436,2122.1,2120.8,7.07031]
[1625164065901,1.72142436,2122.1,2120.8,12.08031]
[1625164066001,6.73142436,2122.1,2120.8,12.08031]
[1625164066246,0.28038187,2122.0,2120.8,12.08031]
[1625164066348,0.31405329,2122.2,2120.8,12.08031]
[1625164066500,0.32202411,2122.2,2120.8,5.01]
[1625164066700,0.32202411,2122.2,2120.5,14.43528]
[1625164066799,0.32202411,2122.2,2120.5,13.01]
[1625164066950,0.32202411,2122.2,2120.5,5.01]
[1625164067049,0.32202411,2122.2,2120.4,15.1229]
[1625164067199,0.32202411,2122.2,2120.4,23.1229]
[1625164067401,0.31405329,2122.2,2120.4,25.76885917]
[1625164067558,10.24970665,2122.5,2121.4,7.06785]
[1625164067653,1.72142436,2122.6,2121.4,7.06785]
[1625164067753,1.72142436,2122.6,2121.5,0.2]
[1625164067960,1.72142436,2122.6,2121.5,3.8885]
[1625164068047,1.72142436,2122.6,2121.5,8.8985]
[1625164068245,10.4205,2123.0,2121.5,8.8985]
[1625164068595,10.4205,2123.0,2121.5,8.6985]
[1625164068695,10.4205,2123.0,2122.1,7.06592]
[1625164068894,20.65471574,2123.2,2122.1,12.07592]
[1625164068994,15.31611574,2123.2,2122.1,12.07592]
[1625164069150,10.30611574,2123.2,2122.1,12.07592]
[1625164069246,3.5336,2123.1,2122.1,12.07592]
[1625164069801,20.0,2123.0,2122.1,5.01]
[1625164069956,20.0,2123.0,2121.3,19.85899]
[1625164069957,15.0,2122.9,2121.3,19.85899]
[1625164070051,20.0,2122.5,2121.3,9.42379]
[1625164070188,3.612,2122.5,2121.3,9.42379]
[1625164070288,8.622,2122.5,2121.3,9.42379]
[1625164070386,3.612,2122.5,2121.3,9.42379]
[1625164070687,23.622,2122.5,2121.0,9.42553]
[1625164070790,0.31704293,2122.4,2121.0,9.42553]
[1625164070888,0.46704293,2122.4,2121.0,9.42553]
[1625164070983,0.25,2122.4,2121.0,9.42553]
[1625164071135,0.42361588,2122.4,2121.0,9.42553]
[1625164071638,0.42361588,2122.4,2120.8,10.7099]
[1625164071747,23.48513,2122.0,2120.8,10.7099]
[1625164071890,46.0391,2122.0,2120.8,10.7099]
[1625164071989,51.0491,2122.0,2120.3,10.53312638]
[1625164072094,0.35050735,2121.9,2120.3,0.00602638]
[1625164072190,0.50050735,2121.9,2120.3,0.00602638]
[1625164072293,0.54050735,2121.9,2120.3,0.00602638]
[1625164072609,0.50050735,2121.9,2121.3,0.00602099]
[1625164072706,0.15,2121.9,2121.3,0.00602099]
[1625164073058,7.0712,2121.6,2121.3,0.00602099]
[1625164074055,0.04,2121.5,2121.3,0.00602099]
[1625164074160,4.3354,2121.5,2121.3,0.00602099]
[1625164074254,4.2954,2121.5,2121.3,0.00602099]
[1625164078939,5.5646,2121.5,2121.3,0.00602099]
[1625164079194,28.66,2121.4,2121.3,0.00602099]
[1625164079351,0.06,2121.4,2121.3,0.00602099]
[1625164079600,5.5646,2121.5,2121.3,0.00602099]
[1625164079700,12.63609,2121.5,2121.3,0.00602099]
[1625164080752,11.36689,2121.5,2121.3,0.00602099]
[1625164082799,30.7,2121.4,2121.3,0.00602099]
[1625164082900,20.0,2121.4,2121.3,0.00602099]
[1625164082999,13.87529,2121.5,2121.3,0.00602099]
[1625164083100,28.76,2121.4,2121.3,0.00602099]
[1625164083199,0.16,2121.4,2121.3,0.00602099]
[1625164083398,25.6,2121.3,2120.8,0.00602355]
[1625164083799,15.00359,2121.5,2120.8,0.00602355]
[1625164084001,13.81189,2121.5,2120.8,0.00602355]
[1625164084102,12.49519,2121.5,2120.8,0.00602355]
[1625164084806,11.36689,2121.5,2120.8,0.00602355]
[1625164084906,14.90282,2121.5,2120.8,0.00602355]
[1625164085258,0.00602099,2121.8,2120.8,0.00602355]
[1625164087525,0.00602099,2121.8,2120.8,7.07705355]
[1625164087772,0.00602099,2121.8,2120.8,12.08705355]
[1625164087919,0.00602099,2121.8,2120.8,7.07705355]
[1625164088020,0.00602099,2121.8,2120.8,12.08705355]
[1625164089458,3.54138099,2121.8,2120.8,7.07705355]
[1625164089760,7.07122,2121.5,2120.8,7.07705355]
[1625164089861,7.07122,2121.5,2120.8,0.00602355]
[1625164090010,11.88492,2121.5,2120.8,0.00602355]
[1625164093064,4.8137,2121.5,2120.8,0.00602355]
[1625164093171,3.53541,2121.6,2120.8,0.00602355]
[1625164093265,0.00602099,2121.8,2120.8,0.00602355]
[1625164093413,0.00602099,2121.8,2120.9,0.08]
[1625164093963,0.00602099,2121.8,2120.8,9.32702355]
[1625164094167,0.00602099,2121.8,2121.2,7.06954]
[1625164094260,0.00602099,2121.8,2121.0,9.42605]
[1625164094360,0.00602099,2121.8,2121.0,14.43605]
[1625164094812,3.53516,2121.7,2121.0,9.42605]
[1625164095150,10.60569,2121.7,2121.0,9.42605]
[1625164095253,10.60569,2121.7,2120.8,9.43267355]
[1625164095353,3.53516,2121.7,2120.8,14.44267355]
[1625164095454,7.87596,2121.7,2120.8,5.01602355]
[1625164095605,12.88596,2121.7,2120.8,0.00602355]
[1625164095706,20.0,2121.2,2120.8,0.00602355]
[1625164095805,23.6757,2121.2,2120.8,0.00602355]
[1625164095901,28.6857,2121.2,2120.8,0.00602355]
[1625164096003,0.27,2121.1,2120.8,0.00602355]
[1625164096306,7.07337,2121.0,2120.8,0.00602355]
[1625164096502,28.68,2120.9,2120.8,0.00602355]
[1625164096702,28.68,2120.9,2120.8,3.55e-06]
[1625164096809,33.69,2120.9,2120.8,3.55e-06]
[1625164096906,33.84,2120.9,2120.8,3.55e-06]
[1625164097260,37.84,2120.9,2120.8,3.55e-06]
[1625164098869,9.24,2120.9,2120.8,3.55e-06]
[1625164099269,4.23,2120.9,2120.8,3.55e-06]
[1625164100252,0.15,2120.9,2120.8,3.55e-06]
[1625164100505,20.15,2120.9,2120.8,3.55e-06]
[1625164100606,24.461,2120.9,2120.8,3.55e-06]
[1625164100705,41.97065444,2120.9,2120.8,3.55e-06]
[1625164100908,42.13065444,2120.9,2120.8,3.55e-06]
[1625164101055,47.14065444,2120.9,2120.8,3.55e-06]
[1625164101403,32.14065444,2120.9,2120.8,3.55e-06]
[1625164101505,12.14065444,2120.9,2120.8,3.55e-06]
[1625164101603,9.631,2120.9,2120.8,3.55e-06]
[1625164101996,4.621,2120.9,2120.8,3.55e-06]
[1625164103198,8.621,2120.9,2120.8,3.55e-06]
[1625164104297,4.461,2120.9,2120.8,3.55e-06]
[1625164104399,0.15,2120.9,2120.8,3.55e-06]
[1625164105349,4.7681,2120.9,2120.8,3.55e-06]
[1625164105605,4.8281,2120.9,2120.8,3.55e-06]
[1625164105752,9.8381,2120.9,2120.8,3.55e-06]
[1625164105852,4.8281,2120.9,2120.8,3.55e-06]
[1625164106100,12.34775444,2120.9,2120.8,3.55e-06]
[1625164106998,12.35652215,2120.9,2120.8,3.55e-06]
[1625164107903,32.35652215,2120.9,2120.8,3.55e-06]
[1625164108202,12.35652215,2120.9,2120.8,3.55e-06]
[1625164108303,14.07794651,2120.9,2120.8,3.55e-06]
[1625164108407,9.06794651,2120.9,2120.8,3.55e-06]
[1625164108519,6.55829207,2120.9,2120.8,3.55e-06]
[1625164108614,1.94019207,2120.9,2120.8,3.55e-06]
[1625164108712,1.88019207,2120.9,2120.8,3.55e-06]
[1625164109236,0.15876771,2120.9,2120.8,3.55e-06]
[1625164110833,0.00876771,2120.9,2120.8,3.55e-06]
[1625164113778,0.00876771,2120.9,2120.8,18.81000355]
[1625164113880,0.00876771,2120.9,2120.8,5.07000355]
[1625164114080,0.00876771,2120.9,2120.8,0.06000355]
[1625164114178,0.00876771,2120.9,2120.8,5.07000355]
[1625164114381,0.00876771,2120.9,2120.8,0.06000355]
[1625164115324,0.00876771,2120.9,2120.8,3.55e-06]
[1625164119432,0.00876771,2120.9,2120.8,21.19000355]
[1625164119579,0.00876771,2120.9,2120.8,5.05000355]
[1625164119829,0.00876771,2120.9,2120.8,0.04000355]
[1625164119932,0.00876771,2120.9,2120.8,5.05000355]
[1625164120079,0.00876771,2120.9,2120.8,0.04000355]
[1625164121330,0.00876771,2120.9,2120.8,3.55e-06]
[1625164127635,0.00876771,2120.9,2120.8,13.07022355]
[1625164127738,0.00876771,2120.9,2120.8,7.07022355]
[1625164127884,0.00876771,2120.9,2120.8,12.08022355]
[1625164127985,0.00876771,2120.9,2120.8,12.20022355]
[1625164128488,0.00876771,2120.9,2120.8,12.08022355]
[1625164129785,0.00876771,2120.9,2120.8,5.01000355]
[1625164129986,0.00876771,2120.9,2120.8,3.55e-06]
[1625164130086,0.00876771,2120.9,2120.8,5.01000355]
[1625164130288,0.00876771,2120.9,2120.8,3.55e-06]
[1625164132598,0.04876771,2120.9,2120.8,3.55e-06]
[1625164132803,7.12087771,2120.9,2120.8,3.55e-06]
[1625164134689,0.00876771,2120.9,2120.8,3.55e-06]
[1625164136934,7.08128771,2120.9,2120.8,3.55e-06]
[1625164137185,7.12128771,2120.9,2120.8,3.55e-06]
[1625164138138,7.08128771,2120.9,2120.8,3.55e-06]
[1625164139486,12.09128771,2120.9,2120.8,3.55e-06]
[1625164139585,7.08128771,2120.9,2120.8,3.55e-06]
[1625164139685,12.09128771,2120.9,2120.8,3.55e-06]
[1625164139886,12.23128771,2120.9,2120.8,3.55e-06]
[1625164140133,7.22128771,2120.9,2120.8,3.55e-06]
[1625164140483,0.14876771,2120.9,2120.8,3.55e-06]
[1625164141239,0.00876771,2120.9,2120.8,3.55e-06]
[1625164142751,0.00876771,2120.9,2120.8,20.32063355]
[1625164142900,0.00876771,2120.9,2120.8,7.07063355]
[1625164142998,0.00876771,2120.9,2120.8,12.08063355]
[1625164143101,0.00876771,2120.9,2120.8,12.18063355]
[1625164144503,0.00876771,2120.9,2120.8,12.08063355]
[1625164145029,0.00876771,2120.9,2120.8,3.55e-06]
[1625164151402,0.00876771,2120.9,2120.8,4.75740355]
[1625164151606,0.00876771,2120.9,2120.8,4.85740355]
[1625164151803,0.00876771,2120.9,2120.8,9.86740355]
[1625164152454,0.00876771,2120.9,2120.8,16.93752355]
[1625164153150,0.00876771,2120.9,2120.8,11.92752355]
[1625164153251,0.00876771,2120.9,2120.8,16.93752355]
[1625164154639,0.00876771,2120.9,2120.8,9.86740355]
[1625164155385,0.00876771,2120.9,2120.8,9.76740355]
[1625164156069,0.00876771,2120.9,2120.8,4.75740355]
[1625164163978,0.00876771,2120.9,2120.8,11.82807355]
[1625164164131,0.00876771,2120.9,2120.8,16.83807355]
[1625164164230,0.00876771,2120.9,2120.8,17.01807355]
[1625164167875,0.00876771,2120.9,2120.8,16.83807355]
[1625164173713,0.00876771,2120.9,2120.8,9.76740355]
[1625164173812,0.00876771,2120.9,2120.8,16.83807355]
[1625164174058,0.00876771,2120.9,2120.8,16.87807355]
[1625164174259,0.00876771,2120.9,2120.8,16.83807355]
[1625164174912,0.00876771,2120.9,2120.8,11.82807355]
[1625164175417,0.00876771,2120.9,2120.8,4.75740355]
[1625164177118,0.00876771,2120.9,2120.8,3.55e-06]
[1625164184934,20.00876771,2120.9,2120.8,3.55e-06]
[1625164185272,20.16876771,2120.9,2120.8,3.55e-06]
[1625164185534,0.16876771,2120.9,2120.8,3.55e-06]
[1625164185920,7.24134771,2120.9,2120.8,3.55e-06]
[1625164186168,7.08134771,2120.9,2120.8,3.55e-06]
[1625164186320,0.00876771,2120.9,2120.8,3.55e-06]
[1625164187222,0.00876771,2120.9,2120.8,3.89150355]
[1625164187423,0.00876771,2120.9,2120.8,8.90150355]
[1625164187666,0.00876771,2120.9,2120.8,8.94150355]
[1625164188012,0.00876771,2120.9,2120.8,8.90150355]
[1625164188819,0.00876771,2120.9,2120.8,3.89150355]
[1625164188921,0.00876771,2120.9,2120.8,10.96161355]
[1625164189267,0.00876771,2120.9,2120.8,3.89150355]
[1625164189667,0.00876771,2120.9,2120.8,3.55e-06]
[1625164194891,7.08047771,2120.9,2120.8,3.55e-06]
[1625164195042,10.94307771,2120.9,2120.8,3.55e-06]
[1625164195240,11.10307771,2120.9,2120.8,3.55e-06]
[1625164196866,0.00876771,2120.9,2120.8,3.55e-06]
[1625164197921,0.13910589,2121.5,2120.8,3.55e-06]
[1625164198019,0.13910589,2121.5,2120.8,2.24031895]
[1625164198215,0.13910589,2121.5,2120.9,0.2]
[1625164198365,0.13910589,2121.5,2120.9,2.86589127]
[1625164198465,0.13910589,2121.5,2121.2,11.97755]
[1625164198670,0.13908562,2121.7,2121.2,11.97755]
[1625164198878,0.13908562,2121.7,2121.3,0.06]
[1625164199180,0.00602099,2121.8,2121.3,0.06]
[1625164199328,0.00602099,2121.8,2121.2,6.0654]
[1625164199891,0.00602099,2121.8,2121.2,11.0754]
[1625164202083,0.00602099,2121.8,2121.2,18.14377]
[1625164203791,0.00602099,2121.8,2121.2,11.0754]
[1625164203885,0.00602099,2121.8,2121.2,12.1729]
[1625164204033,0.00602099,2121.8,2121.3,0.16]
[1625164204333,0.00602099,2121.8,2121.4,0.2]
[1625164204883,0.13893942,2122.3,2121.8,7.0666]
[1625164204986,0.13893942,2122.3,2121.8,10.184]
[1625164205086,0.41681826,2122.5,2122.0,28.55]
[1625164205187,0.41681826,2122.5,2121.9,1.2508]
[1625164205188,0.27784867,2122.5,2121.9,1.2508]
[1625164205286,0.27784867,2122.5,2121.9,6.4608]
[1625164205383,0.833546,2122.9,2122.0,24.65]
[1625164205607,0.833546,2122.9,2122.0,5.21]
[1625164205698,0.833546,2122.9,2122.0,5.01]
[1625164205794,0.833546,2122.9,2121.9,1.2508]
[1625164206005,26.40165874,2123.2,2121.9,1.2508]
[1625164206196,25.56801574,2123.2,2121.9,1.2508]
[1625164206298,7.0655,2123.1,2122.0,9.42009]
[1625164206401,0.06,2123.1,2121.9,1.2508]
[1625164206895,25.56801574,2123.2,2121.9,1.2508]
[1625164207445,25.56801574,2123.2,2121.8,8.1274]
[1625164207549,7.06643,2122.8,2121.8,8.1274]
[1625164207650,7.06643,2122.8,2121.8,15.19356]
[1625164209339,7.06643,2122.8,2122.5,0.13152306]
[1625164209589,0.16,2122.7,2121.8,12.07616]
[1625164209789,28.55,2122.8,2121.8,12.07616]
[1625164209889,28.55,2122.8,2122.3,0.0629627]
[1625164209989,0.006,2122.9,2122.3,0.0629627]
[1625164210237,0.1,2122.8,2122.3,0.0629627]
[1625164210586,0.006,2122.9,2122.3,0.0629627]
[1625164210692,0.006,2122.9,2122.3,0.06897931]
[1625164210838,7.06651,2122.7,2122.3,0.06897931]
[1625164211437,9.42812,2122.9,2122.3,0.06897931]
[1625164211590,0.006,2122.9,2122.3,0.06897931]
[1625164212238,0.006,2122.9,2122.3,4.86067931]
[1625164212439,0.006,2122.9,2122.3,9.87067931]
[1625164214848,0.006,2122.9,2122.3,9.80771661]
[1625164215149,0.006,2122.9,2122.6,0.0629627]
[1625164215601,0.12,2122.8,2122.6,0.0629627]
[1625164215752,3.6603,2122.8,2122.6,0.0629627]
[1625164216704,35.61674,2122.7,2122.6,0.0629627]
[1625164216941,55.61674,2122.7,2122.6,0.0629627]
[1625164217098,35.61674,2122.7,2122.3,0.00601661]
[1625164217194,40.78674,2122.7,2122.3,0.00601661]
[1625164217293,0.15,2122.6,2122.3,0.00601661]
[1625164217492,0.16,2122.5,2122.3,0.00601661]
[1625164217841,0.16,2122.4,2121.8,0.00601868]
[1625164217995,7.06872,2122.1,2121.8,0.00601868]
[1625164218144,11.06392,2122.1,2121.8,0.00601868]
[1625164218397,0.04,2122.0,2121.8,0.00601868]
[1625164218546,0.19,2122.0,2121.8,8.68e-06]
[1625164218642,20.19,2122.0,2121.8,8.68e-06]
[1625164218744,28.19,2122.0,2121.8,8.68e-06]
[1625164218843,0.16,2121.9,2121.8,8.68e-06]
[1625164219150,7.37925,2121.9,2121.8,8.68e-06]
[1625164219550,11.37925,2121.9,2121.8,8.68e-06]
[1625164220400,31.37925,2121.9,2121.8,8.68e-06]
[1625164220550,26.37925,2121.9,2121.8,8.68e-06]
[1625164220651,31.38925,2121.9,2121.8,8.68e-06]
[1625164222188,33.88291592,2121.9,2121.8,8.68e-06]
[1625164222289,36.29279764,2121.9,2121.8,8.68e-06]
[1625164222386,56.29279764,2121.9,2121.8,8.68e-06]
[1625164223241,56.29279764,2121.9,2121.3,0.00602099]
[1625164223342,39.5,2121.4,2121.3,9.9e-07]
[1625164223447,44.3483,2121.4,2121.3,9.9e-07]
[1625164223547,47.8847853,2121.4,2121.3,9.9e-07]
[1625164223670,28.3847853,2121.4,2121.3,9.9e-07]
[1625164223776,23.3847853,2121.4,2121.3,9.9e-07]
[1625164223925,23.5447853,2121.4,2121.3,9.9e-07]
[1625164224423,34.6177653,2121.4,2121.3,9.9e-07]
[1625164224572,47.7777653,2121.4,2121.3,9.9e-07]
[1625164224671,67.7777653,2121.4,2121.3,9.9e-07]
[1625164224872,67.7777653,2121.4,2119.8,68.6348241]
[1625164224972,3.53659,2121.2,2119.8,15.7227]
[1625164225223,0.1,2121.1,2119.8,15.7227]
[1625164225320,20.0,2121.0,2119.8,15.7227]
[1625164225471,7.07291,2121.0,2119.9,7.07293]
[1625164225572,0.16,2120.9,2119.9,12.08293]
[1625164225721,4.2285,2120.9,2119.9,7.07293]
[1625164226245,4.0685,2120.9,2119.9,7.07293]
[1625164227098,4.0685,2120.9,2119.9,12.08293]
[1625164227196,4.0685,2120.9,2119.9,7.07293]
[1625164227298,4.0685,2120.9,2119.9,12.08293]
[1625164228787,4.0685,2120.9,2119.9,5.01]
[1625164229039,4.0685,2120.9,2119.7,12.08332]
[1625164229137,4.0685,2120.9,2119.7,7.07332]
[1625164229287,4.0685,2120.9,2119.7,12.03934355]
[1625164229390,4.0685,2120.9,2119.7,7.02934355]
[1625164229567,0.16,2120.8,2119.7,12.03934355]
[1625164229675,0.16,2120.8,2119.7,7.02934355]
[1625164229819,5.2779,2120.9,2119.7,12.03934355]
[1625164229925,8.81457,2120.9,2119.7,7.02934355]
[1625164230019,8.81457,2120.9,2119.7,12.03934355]
[1625164231234,7.07342,2120.7,2119.7,12.03934355]
[1625164231780,7.07342,2120.7,2119.7,5.01]
[1625164231879,7.07342,2120.7,2119.6,16.0306]
[1625164232131,5.07082,2120.6,2119.6,5.01]
[1625164232333,5.07082,2120.6,2119.5,14.44151]
[1625164232431,10.49802,2120.4,2119.5,14.44151]
[1625164233009,10.49802,2120.4,2119.5,5.01]
[1625164233208,10.49802,2120.4,2119.4,11.88]
[1625164233309,30.49802,2120.4,2119.4,6.87]
[1625164233462,30.49802,2120.4,2119.4,11.88]
[1625164233811,10.49802,2120.4,2119.4,11.88]
[1625164233961,30.49802,2120.4,2119.4,11.88]
[1625164234061,34.03543,2120.4,2119.4,11.88]
[1625164234161,14.03543,2120.4,2119.4,11.88]
[1625164234263,73.65433726,2120.4,2119.4,6.87]
[1625164234415,20.0,2120.0,2119.4,6.87]
[1625164234616,15.0,2119.9,2119.4,6.87]
[1625164234713,38.8,2119.5,2119.4,6.87]
[1625164234930,33.25,2119.5,2119.4,6.87]
[1625164235027,33.25,2119.5,2117.8,21.6505]
[1625164235028,38.26,2119.5,2117.8,21.6505]
[1625164235128,20.0,2119.2,2117.8,21.6505]
[1625164235236,24.74841725,2119.2,2117.8,21.6505]
[1625164235327,0.32853111,2119.1,2117.8,21.6505]
[1625164235425,20.32853111,2119.1,2117.8,21.6505]
[1625164235928,20.32853111,2119.1,2117.8,10.8973]
[1625164236030,0.32853111,2119.1,2117.8,10.8973]
[1625164236128,20.32853111,2119.1,2117.8,10.8973]
[1625164236227,0.31009017,2118.9,2117.8,10.8973]
[1625164236329,7.08931603,2118.9,2117.8,10.8973]
[1625164236429,7.08931603,2118.9,2117.8,15.9073]
[1625164236574,7.08931603,2118.9,2117.8,10.8973]
[1625164236678,7.36515661,2118.9,2117.8,10.8973]
[1625164236778,7.36515661,2118.9,2117.5,33.4036692]
[1625164237026,7.36515661,2118.9,2117.5,33.3036692]
[1625164237164,0.28526661,2118.9,2117.5,33.3036692]
[1625164237264,0.00942603,2118.9,2117.5,37.87641753]
[1625164237516,0.00942603,2118.9,2117.6,0.08]
[1625164237664,0.34813105,2119.4,2117.6,0.08]
[1625164237761,0.27783344,2119.2,2117.6,0.08]
[1625164237864,3.5395,2119.5,2117.5,37.87641753]
[1625164237865,0.35377968,2119.4,2117.7,2.28864873]
[1625164237962,0.35377968,2119.4,2117.7,4.61274833]
[1625164238111,0.35377968,2119.4,2117.8,0.1]
[1625164238262,0.35377968,2119.4,2117.7,4.57274833]
[1625164238361,0.35377968,2119.4,2117.7,9.58274833]
[1625164238462,0.35377968,2119.4,2118.2,7.07765]
[1625164238562,0.35377968,2119.4,2118.2,12.08765]
[1625164238765,3.5395,2119.5,2118.2,12.08765]
[1625164239063,3.5395,2119.5,2118.0,9.43686]
[1625164239167,18.5395,2119.5,2118.0,9.43686]
[1625164239268,3.76584212,2119.4,2117.8,10.6735]
[1625164239505,0.04,2119.3,2117.8,10.6735]
[1625164239605,0.24250298,2119.2,2117.8,10.6735]
[1625164239809,7.07958,2119.0,2117.8,10.6735]
[1625164240359,7.07958,2119.0,2117.8,15.6835]
[1625164240958,7.07958,2119.0,2117.8,15.28935935]
[1625164241258,7.07958,2119.0,2117.8,15.23935935]
[1625164241409,27.07958,2119.0,2117.8,15.23935935]
[1625164241508,7.07958,2119.0,2117.8,15.23935935]
[1625164241670,20.0,2118.8,2117.8,15.23935935]
[1625164241768,24.3806,2118.8,2117.8,15.23935935]
[1625164242067,24.3806,2118.8,2117.8,5.01]
[1625164242167,0.23131087,2118.7,2117.8,5.01]
[1625164242274,20.0,2118.5,2117.6,10.058]
[1625164242371,20.0,2118.5,2117.5,10.4287]
[1625164242372,20.0,2118.5,2117.3,10.042]
[1625164242473,20.0,2118.1,2116.9,2.3240996]
[1625164242624,3.6139,2118.1,2116.8,7.08213]
[1625164242824,3.6139,2118.1,2116.9,0.14]
[1625164242925,0.8197066,2118.1,2116.9,0.14]
[1625164243020,0.8197066,2118.1,2117.0,0.2]
[1625164243222,0.8197066,2118.1,2116.9,4.51597441]
[1625164243470,0.8197066,2118.1,2117.1,2.19187481]
[1625164243581,0.8197066,2118.1,2117.4,7.08008]
[1625164243674,1.429,2118.3,2117.4,7.08008]
[1625164243771,0.00879795,2118.6,2117.5,0.04]
[1625164244110,0.00879795,2118.6,2117.4,12.09008]